bitfinex/quotes_SOLUSD_20251018
["timestamp","ask_amount","ask_price","bid_price","bid_amount"]
[1760818094897,0.72,187.17,187.15,22.16373011]
[1760818095096,0.72,187.16,187.15,22.16373011]
[1760818095596,0.72,187.16,187.15,18.70086987]
[1760818097384,0.72,187.16,187.15,22.16373011]
[1760818098386,0.72,187.18,187.15,22.16373011]
[1760818098580,5.82251082,187.23,187.15,22.16373011]
[1760818098581,0.72,187.21,187.16,11.56647521]
[1760818098897,0.72,187.21,187.17,3.46286024]
[1760818099082,0.72,187.2,187.18,3.46286024]
[1760818099283,0.72,187.2,187.19,5.34216571]
[1760818100902,0.72,187.22,187.19,22.16044023]
[1760818101204,0.72,187.21,187.19,22.16044023]
[1760818103407,0.72,187.21,187.19,18.69757999]
[1760818104091,0.72,187.21,187.19,22.16044023]
[1760818105695,0.72,187.21,187.19,18.69757999]
[1760818106982,6.54251082,187.23,187.19,18.69757999]
[1760818107179,0.72,187.22,187.19,18.69757999]
[1760818107597,0.72,187.21,187.19,18.69757999]
[1760818108712,0.72,187.2,187.19,18.69757999]
[1760818108896,0.72,187.2,187.1,27.41297994]
[1760818109088,0.72,187.19,187.14,3.46286024]
[1760818109291,0.72,187.18,187.15,3.46286024]
[1760818109493,0.72,187.2,187.16,3.46286024]
[1760818109706,0.72,187.19,187.16,3.46286024]
[1760818109910,9.28537106,187.23,187.16,3.46286024]
[1760818110107,0.72,187.21,187.16,3.46286024]
[1760818110406,0.72,187.2,187.16,3.46286024]
[1760818110595,0.72,187.19,187.16,3.46286024]
[1760818110804,0.72,187.18,187.17,5.34273654]
[1760818111186,0.72,187.18,187.17,18.69957791]
[1760818112387,0.72,187.18,187.17,13.35684137]
[1760818114501,0.72,187.19,187.17,13.35684137]
[1760818114710,0.72,187.18,187.17,13.35684137]
[1760818117814,5.82251082,187.23,187.18,10.87647521]
[1760818117992,6.54251082,187.23,187.18,11.56647521]
[1760818118189,6.54251082,187.23,187.2,3.46286024]
[1760818118500,5.82251082,187.23,187.2,3.46286024]
[1760818118721,6.54251082,187.23,187.21,3.46286024]
[1760818118895,6.54251082,187.23,187.22,5.34130968]
[1760818119211,5.82251082,187.23,187.22,5.34130968]
[1760818122701,6.54251082,187.23,187.22,5.34130968]
[1760818123316,6.54251082,187.23,187.21,5.341595]
[1760818124325,0.67,187.22,187.21,5.341595]
[1760818125120,5.82251082,187.23,187.21,5.341595]
[1760818125514,6.49251082,187.23,187.21,5.341595]
[1760818126116,0.67,187.22,187.2,3.46286024]
[1760818126722,0.67,187.22,187.19,3.46286024]
[1760818128025,5.82251082,187.23,187.2,18.69658119]
[1760818128204,0.67,187.21,187.2,18.69658119]
[1760818128409,0.67,187.21,187.2,5.34188034]
[1760818128911,4.13286024,187.21,187.2,5.34188034]
[1760818129117,0.67,187.21,187.2,5.34188034]
[1760818130108,0.67,187.21,187.17,18.69919923]
[1760818130419,0.67,187.2,187.17,18.69919923]
[1760818130616,0.67,187.19,187.17,18.69919923]
[1760818131208,0.67,187.19,187.17,13.35646269]
[1760818132929,0.67,187.19,187.16,3.46286024]
[1760818133915,0.67,187.19,187.17,5.34273654]
[1760818135616,102.1,187.21,187.17,22.82243815]
[1760818135811,102.77,187.21,187.18,3.46286024]
[1760818136316,102.77,187.21,187.17,22.16243815]
[1760818136928,0.67,187.2,187.17,22.16243815]
[1760818137233,0.67,187.2,187.17,18.69957791]
[1760818140418,9.28537106,187.23,187.17,18.69957791]
[1760818140638,9.28537106,187.23,187.17,19.35957791]
[1760818140639,0.67,187.22,187.17,19.35957791]
[1760818140837,0.67,187.21,187.17,19.35957791]
[1760818141214,0.67,187.2,187.17,18.69957791]
[1760818141419,0.67,187.19,187.17,18.69957791]
[1760818142340,0.67,187.18,187.17,13.35684137]
[1760818142537,0.67,187.2,187.17,13.35684137]
[1760818142938,6.49251082,187.23,187.18,4.12286024]
[1760818143145,0.67,187.22,187.18,4.12286024]
[1760818143717,5.82251082,187.23,187.19,0.66]
[1760818144047,5.82251082,187.23,187.19,3.46286024]
[1760818144350,5.82251082,187.23,187.2,18.69658119]
[1760818144351,6.49251082,187.23,187.2,18.69658119]
[1760818146243,0.66,187.22,187.2,18.69658119]
[1760818146449,0.66,187.21,187.2,5.34188034]
[1760818147445,0.66,187.21,187.17,18.69887932]
[1760818150439,0.66,187.21,187.17,19.38887932]
[1760818151148,6.48251082,187.23,187.18,0.69]
[1760818151347,9.94537106,187.23,187.18,0.69]
[1760818151531,0.66,187.22,187.18,0.69]
[1760818152122,9.28537106,187.23,187.19,18.69757999]
[1760818152350,5.82251082,187.23,187.2,4.15286024]
[1760818152545,5.82251082,187.23,187.21,0.69]
[1760818152752,5.82251082,187.23,187.19,22.16044023]
[1760818152946,5.82251082,187.23,187.2,0.69]
[1760818153463,5.82251082,187.23,187.21,4.16286024]
[1760818153760,5.82251082,187.23,187.19,22.86044023]
[1760818153956,5.82251082,187.23,187.2,0.7]
[1760818154141,5.82251082,187.23,187.21,5.341595]
[1760818155862,5.82251082,187.23,187.2,18.69658119]
[1760818157241,5.82251082,187.23,187.2,19.39658119]
[1760818159556,5.82251082,187.23,187.21,0.7]
[1760818159959,5.82251082,187.23,187.2,18.69658119]
[1760818160343,5.82251082,187.23,187.2,19.39658119]
[1760818160543,5.82251082,187.23,187.21,0.7]
[1760818160959,5.82251082,187.23,187.2,18.69658119]
[1760818161142,5.82251082,187.23,187.2,19.39658119]
[1760818164277,6.51251082,187.23,187.2,18.69658119]
[1760818164661,3.46286024,187.21,187.18,5.34236829]
[1760818164956,4.15286024,187.2,187.13,9.50673882]
[1760818165157,0.69,187.19,187.14,4.16286024]
[1760818165457,0.69,187.22,187.16,3.46286024]
[1760818165638,0.69,187.21,187.16,4.16286024]
[1760818165848,0.69,187.2,187.16,4.16286024]
[1760818166143,0.69,187.2,187.17,18.69957791]
[1760818167260,0.69,187.19,187.17,18.69957791]
[1760818167454,0.69,187.18,187.17,18.69957791]
[1760818167656,0.69,187.2,187.17,18.69957791]
[1760818167962,0.69,187.19,187.17,18.69957791]
[1760818168141,0.69,187.19,187.15,18.70157626]
[1760818168342,0.69,187.19,187.15,22.1644365]
[1760818168538,0.69,187.19,187.15,22.8644365]
[1760818169759,3.46286024,187.21,187.15,18.70157626]
[1760818169943,4.15286024,187.2,187.15,18.70157626]
[1760818170139,0.69,187.19,187.15,18.70157626]
[1760818170357,0.69,187.18,187.15,18.70157626]
[1760818174772,0.69,187.17,187.15,18.70157626]
[1760818175353,102.1,187.19,187.15,18.70157626]
[1760818175847,3.46286024,187.17,187.15,5.3433075]
[1760818176047,105.56286024,187.18,187.15,5.3433075]
[1760818176563,102.1,187.18,187.15,5.3433075]
[1760818176766,102.1,187.18,187.15,6.0433075]
[1760818176959,102.1,187.18,187.16,0.7]
[1760818177350,102.1,187.18,187.15,18.70157626]
[1760818177663,102.79,187.18,187.15,19.40157626]
[1760818178460,102.1,187.18,187.15,18.70157626]
[1760818178770,102.1,187.18,187.16,0.7]
[1760818178967,102.1,187.18,187.17,5.34273654]
[1760818180068,102.1,187.18,187.16,5.34302201]
[1760818183167,102.79,187.18,187.16,5.34302201]
[1760818183769,0.65,187.17,187.16,5.34302201]
[1760818184365,4.11286024,187.17,187.14,5.34334114]
[1760818184569,0.65,187.16,187.14,5.34334114]
[1760818185173,0.65,187.15,187.14,5.34334114]
[1760818185375,0.65,187.17,187.13,13.3596272]
[1760818185570,0.65,187.16,187.13,13.3596272]
[1760818185769,0.65,187.15,187.13,13.3596272]
[1760818186576,0.65,187.15,187.13,18.70350578]
[1760818188675,0.65,187.15,187.13,13.3596272]
[1760818189588,3.46286024,187.17,187.13,13.3596272]
[1760818189768,0.65,187.15,187.13,13.3596272]
[1760818190880,0.65,187.15,187.13,18.70350578]
[1760818193986,0.65,187.14,187.13,5.34387858]
[1760818194568,102.1,187.15,187.13,5.34387858]
[1760818194770,102.75,187.15,187.13,5.34387858]
[1760818194969,102.75,187.15,187.12,18.7045746]
[1760818195880,102.1,187.15,187.12,18.7045746]
[1760818196082,102.1,187.15,187.13,0.68]
[1760818196280,102.75,187.15,187.12,18.7045746]
[1760818196487,102.1,187.15,187.12,19.3845746]
[1760818196873,102.1,187.15,187.14,5.34359303]
[1760818197289,102.1,187.15,187.14,6.02359303]
[1760818199175,102.1,187.15,187.14,5.34359303]
[1760818201690,102.75,187.15,187.12,14.04041043]
[1760818201887,102.1,187.15,187.12,13.36041043]
[1760818202098,102.75,187.15,187.12,13.36041043]
[1760818202408,0.65,187.14,187.12,13.36041043]
[1760818202905,102.1,187.15,187.12,13.36041043]
[1760818203074,102.1,187.15,187.13,0.68]
[1760818203598,102.1,187.15,187.14,5.34359303]
[1760818206686,102.8,187.15,187.13,5.34387858]
[1760818207303,0.7,187.14,187.13,5.34387858]
[1760818207798,0.7,187.14,187.1,18.70646485]
[1760818208094,0.7,187.13,187.1,18.70646485]
[1760818209595,0.7,187.13,187.1,13.36172942]
[1760818209893,0.7,187.13,187.1,14.03172942]
[1760818210310,0.7,187.13,187.1,13.36172942]
[1760818210804,0.7,187.12,187.09,5.34502111]
[1760818211104,0.7,187.11,187.06,22.84274058]
[1760818211280,0.7,187.11,187.07,0.67]
[1760818211481,3.46286024,187.12,187.07,0.67]
[1760818211682,0.7,187.11,187.08,18.70857387]
[1760818211896,0.7,187.1,187.08,18.70857387]
[1760818212505,4.16286024,187.09,187.06,5.34587832]
[1760818212691,0.7,187.08,187.06,5.34587832]
[1760818213404,4.16286024,187.08,187.06,5.34587832]
[1760818213702,4.16286024,187.08,187.05,18.71113938]
[1760818214716,3.46286024,187.08,187.05,18.71113938]
[1760818214885,3.46286024,187.07,187.05,18.71113938]
[1760818215200,4.18286024,187.07,187.05,18.71113938]
[1760818215784,3.46286024,187.07,187.05,18.71113938]
[1760818217418,3.46286024,187.07,187.05,5.34616412]
[1760818217602,4.18286024,187.06,187.05,5.34616412]
[1760818219403,4.18286024,187.06,187.03,18.7135704]
[1760818219585,4.18286024,187.05,187.03,18.7135704]
[1760818220392,4.18286024,187.05,187.02,6.03687915]
[1760818220588,4.18286024,187.05,187.02,5.34687915]
[1760818220589,0.72,187.04,187.02,5.34687915]
[1760818220807,4.18286024,187.04,187.02,5.34687915]
[1760818220996,4.18286024,187.03,187.02,5.34687915]
[1760818221195,4.18286024,187.03,187.01,5.34726434]
[1760818221407,106.28286024,187.02,187.0,0.2]
[1760818221593,3.46286024,187.01,187.0,0.2]
[1760818221790,102.1,187.02,187.01,0.69]
[1760818222809,102.1,187.02,187.0,5.54759358]
[1760818223110,102.1,187.02,187.01,0.69]
[1760818223517,102.1,187.02,187.0,5.54759358]
[1760818223518,102.1,187.02,187.0,6.23759358]
[1760818224098,102.1,187.02,187.01,6.03730763]
[1760818224294,102.1,187.02,187.01,5.34730763]
[1760818225226,102.1,187.02,187.01,6.03730763]
[1760818225624,102.1,187.02,187.01,5.34730763]
[1760818229211,102.1,187.02,187.01,6.03730763]
[1760818229538,102.1,187.02,187.01,5.34730763]
[1760818229721,102.1,187.02,187.01,6.03730763]
[1760818230232,102.1,187.02,187.01,5.34730763]
[1760818232209,102.1,187.02,187.01,6.03730763]
[1760818237328,102.1,187.02,187.01,5.34730763]
[1760818244842,106.21286024,187.02,187.01,5.34730763]
[1760818245044,102.75,187.02,187.01,5.34730763]
[1760818251257,106.21286024,187.02,187.01,5.34730763]
[1760818254563,102.75,187.02,187.01,5.34730763]
[1760818260359,96.05548825,187.02,187.01,5.34730763]
[1760818265659,99.51834849,187.02,187.01,5.34730763]
[1760818265872,99.51834849,187.02,187.0,0.2]
[1760818266177,98.86834849,187.01,187.0,5.54759358]
[1760818266678,99.53834849,187.01,187.0,5.54759358]
[1760818268466,99.53834849,187.01,187.0,0.2]
[1760818268758,4.13286024,187.01,187.0,0.2]
[1760818269777,6.27768986,187.01,187.0,0.2]
[1760818270071,29.15768986,187.01,187.0,0.2]
[1760818270873,0.67,187.04,187.0,6.20759358]
[1760818271073,22.88,187.02,187.01,0.66]
[1760818271577,4.13286024,187.04,187.01,0.66]
[1760818272161,4.13286024,187.04,187.0,5.54759358]
[1760818272470,27.01286024,187.03,187.0,5.54759358]
[1760818272685,3.46286024,187.01,187.0,0.2]
[1760818273175,4.13286024,187.01,187.0,0.2]
[1760818273384,15.00933545,187.01,187.0,0.2]
[1760818274062,22.50158771,187.01,187.0,0.2]
[1760818274275,17.15428008,187.01,187.0,0.2]
[1760818274558,22.50158771,187.01,187.0,0.2]
[1760818276945,45.38158771,187.01,187.0,0.2]
[1760818277146,22.50158771,187.01,187.0,0.2]
[1760818279858,3.46286024,186.94,186.92,0.72]
[1760818280058,22.88,186.99,186.92,0.72]
[1760818280059,98.26834849,186.93,186.92,0.72]
[1760818281160,98.26834849,186.93,186.91,5.35013128]
[1760818281364,98.26834849,186.93,186.91,6.07013128]
[1760818281566,94.80548825,186.92,186.91,6.07013128]
[1760818281767,94.80548825,186.92,186.91,5.35013128]
[1760818281768,98.26834849,186.92,186.91,5.35013128]
[1760818282277,98.26834849,186.92,186.87,3.46286024]
[1760818282596,26.34286024,186.93,186.91,0.72]
[1760818282789,26.34286024,186.93,186.87,3.46286024]
[1760818283083,26.34286024,186.93,186.88,0.72]
[1760818283456,26.34286024,186.93,186.89,5.35074107]
[1760818283657,26.34286024,186.93,186.9,0.72]
[1760818284188,26.34286024,186.93,186.91,0.72]
[1760818284492,0.67,187.05,186.93,10.87647521]
[1760818284691,0.67,187.05,186.98,3.46286024]
[1760818284692,3.46286024,187.03,186.98,3.46286024]
[1760818284986,3.46286024,187.04,186.99,0.72]
[1760818285165,3.46286024,187.04,186.99,8.06525378]
[1760818285360,3.46286024,187.04,187.01,5.34730763]
[1760818285566,3.46286024,187.04,187.02,0.72]
[1760818285883,3.46286024,187.03,187.02,0.72]
[1760818286383,3.46286024,187.05,187.02,0.72]
[1760818286674,0.67,187.05,187.01,5.34730763]
[1760818286884,3.46286024,187.07,187.01,5.34730763]
[1760818286885,0.67,187.04,187.01,5.34730763]
[1760818287191,3.46286024,187.06,187.01,6.06730763]
[1760818287360,0.67,187.05,187.01,5.34730763]
[1760818287562,0.67,187.05,187.01,0.72]
[1760818288586,0.67,187.05,187.02,5.3470217]
[1760818290389,0.67,187.05,186.99,18.71757847]
[1760818290585,0.67,187.05,187.02,0.72]
[1760818291491,0.67,187.05,187.02,6.0669399]
[1760818293191,102.1,187.04,187.02,6.0669399]
[1760818298174,102.1,187.03,187.02,6.0669399]
[1760818299982,102.1,187.03,187.02,9.52980014]
[1760818304090,102.1,187.08,187.02,22.89735441]
[1760818304283,102.1,187.08,187.06,3.46286024]
[1760818304486,102.1,187.08,187.07,0.67]
[1760818305699,102.1,187.08,187.07,6.01559255]
[1760818306086,102.1,187.07,187.01,16.07932466]
[1760818306399,105.56286024,187.06,186.99,5.34787956]
[1760818306595,3.46286024,187.05,186.99,5.34787956]
[1760818306802,0.67,187.04,186.99,5.34787956]
[1760818307007,0.67,187.03,186.99,6.01787956]
[1760818307803,0.67,187.02,186.99,6.01787956]
[1760818307987,0.67,187.04,187.0,0.67]
[1760818309001,102.1,187.06,187.01,5.34730763]
[1760818309189,102.77,187.06,187.02,0.67]
[1760818310385,102.1,187.06,187.03,0.67]
[1760818311091,102.77,187.06,187.03,0.67]
[1760818312114,0.67,187.08,187.04,0.67]
[1760818312405,22.88,187.08,187.05,0.67]
[1760818312608,23.55,187.08,187.05,0.67]
[1760818312798,23.55,187.08,187.03,22.17626506]
[1760818312983,23.55,187.08,187.04,0.67]
[1760818314192,23.55,187.08,187.04,6.01617373]
[1760818314508,0.67,187.07,187.04,6.01617373]
[1760818316692,0.67,187.07,187.04,5.34617373]
[1760818317289,0.67,187.06,187.02,6.01680592]
[1760818317802,0.67,187.05,187.02,6.01680592]
[1760818319186,0.67,187.05,187.01,0.67]
[1760818319384,0.67,187.05,187.0,3.46286024]
[1760818319594,0.67,187.05,187.01,0.67]
[1760818319915,0.67,187.06,187.02,0.67]
[1760818321812,102.1,187.05,187.03,5.34673581]
[1760818322113,102.77,187.05,187.03,5.34673581]
[1760818322909,102.1,187.05,187.02,5.3470217]
[1760818323113,102.1,187.05,187.03,0.67]
[1760818323302,102.1,187.05,187.04,0.67]
[1760818324901,102.1,187.05,187.04,6.01644995]
[1760818325615,102.1,187.05,187.02,5.3467879]
[1760818325926,102.77,187.05,187.02,6.0167879]
[1760818327806,102.1,187.04,187.02,6.0167879]
[1760818330515,102.1,187.04,187.02,0.72]
[1760818331322,0.69,187.03,186.96,5.34873769]
[1760818331517,102.79,187.02,186.96,9.53159793]
[1760818331823,102.79,187.02,186.97,0.72]
[1760818332022,0.69,187.01,186.97,3.46286024]
[1760818332220,0.69,187.01,186.98,0.72]
[1760818332521,102.1,187.02,186.99,5.34787956]
[1760818332725,102.1,187.02,186.99,6.06787956]
[1760818332923,102.79,187.02,186.99,6.06787956]
[1760818333607,102.79,187.02,186.99,5.34787956]
[1760818335325,0.72,187.01,186.99,5.34787956]
[1760818336715,102.1,187.02,186.99,6.05787956]
[1760818336919,102.1,187.02,187.0,0.71]
[1760818337749,102.82,187.02,186.99,6.05787956]
[1760818337931,102.82,187.02,186.99,5.34787956]
[1760818338925,0.72,187.01,186.99,5.34787956]
[1760818341515,102.1,187.02,187.0,0.71]
[1760818341719,102.1,187.02,187.01,9.52016787]
[1760818343031,102.82,187.02,186.98,4.17286024]
[1760818343343,102.1,187.02,187.0,3.46286024]
[1760818343543,102.82,187.02,187.0,3.46286024]
[1760818343746,102.1,187.02,187.01,5.34730763]
[1760818344241,102.1,187.02,187.01,6.05730763]
[1760818344944,102.1,187.02,187.01,5.51594773]
[1760818345535,102.1,187.02,187.01,4.80594773]
[1760818347323,102.1,187.02,187.0,5.34759358]
[1760818347844,102.82,187.02,187.0,5.34759358]
[1760818348642,102.82,187.02,187.0,8.81045382]
[1760818349333,102.1,187.02,187.0,8.81045382]
[1760818349830,102.1,187.02,187.0,9.52045382]
[1760818352949,102.1,187.02,187.0,8.81045382]
[1760818353127,102.1,187.02,187.0,5.34759358]
[1760818353329,102.1,187.02,187.0,8.81045382]
[1760818354830,102.82,187.02,187.0,5.34759358]
[1760818355032,102.82,187.02,187.0,8.81045382]
[1760818356240,0.72,187.01,187.0,5.34759358]
[1760818356643,0.72,187.01,186.98,5.34816557]
[1760818356830,0.72,187.0,186.98,5.34816557]
[1760818357035,3.46286024,187.04,186.98,5.34816557]
[1760818358253,3.46286024,187.05,186.98,3.46286024]
[1760818359034,0.72,187.04,186.98,3.46286024]
[1760818359237,0.72,187.03,186.99,5.34787956]
[1760818359650,0.72,187.02,186.99,5.34787956]
[1760818360052,3.46286024,187.05,186.99,5.34787956]
[1760818360227,0.72,187.04,186.99,5.34787956]
[1760818360431,0.72,187.03,186.99,5.34787956]
[1760818360850,3.46286024,187.05,186.99,5.34787956]
[1760818361076,0.72,187.02,186.99,5.34787956]
[1760818362959,22.88,187.04,186.99,6.05787956]
[1760818362960,0.72,187.03,186.99,6.05787956]
[1760818367242,0.68,187.02,186.99,5.34787956]
[1760818368358,0.68,187.02,186.99,6.04787956]
[1760818369362,4.14286024,187.03,186.99,6.04787956]
[1760818370875,26.34286024,187.04,187.0,0.7]
[1760818371066,22.88,187.04,187.0,0.7]
[1760818371238,22.88,187.04,187.0,6.04739579]
[1760818371440,3.46286024,187.05,187.01,0.7]
[1760818371775,4.14286024,187.05,187.01,0.7]
[1760818372276,102.1,187.04,187.01,0.7]
[1760818373263,102.1,187.04,187.01,6.04721732]
[1760818374954,102.1,187.04,187.02,0.7]
[1760818376057,102.1,187.04,187.01,5.34721732]
[1760818376243,102.1,187.04,187.01,6.04721732]
[1760818377668,0.68,187.03,186.98,18.71762959]
[1760818377856,4.14286024,187.02,186.96,3.46286024]
[1760818378172,102.1,187.01,186.98,4.16286024]
[1760818378370,102.1,187.01,186.99,0.7]
[1760818379056,102.1,187.01,186.98,3.46286024]
[1760818379250,102.1,187.01,186.99,0.7]
[1760818379446,102.1,187.01,186.98,3.46286024]
[1760818379653,102.1,187.01,186.99,5.34784017]
[1760818379878,102.1,187.01,186.98,6.04812804]
[1760818380686,102.1,187.01,186.99,0.7]
[1760818381184,102.1,187.0,186.99,0.7]
[1760818381776,102.1,187.0,186.97,6.04844015]
[1760818382170,102.1,187.0,186.97,9.51130039]
[1760818382768,102.1,187.0,186.98,0.7]
[1760818383775,102.1,187.0,186.98,6.04795083]
[1760818386873,102.1,186.99,186.98,6.04795083]
[1760818389076,102.1,186.99,186.98,5.34795083]
[1760818389487,102.1,186.99,186.98,6.00795083]
[1760818389988,102.1,186.99,186.98,5.34795083]
[1760818390791,102.82,186.99,186.96,5.34850798]
[1760818391492,102.82,186.99,186.96,6.00850798]
[1760818391874,102.1,186.99,186.96,6.00850798]
[1760818392494,102.1,186.99,186.96,5.34850798]
[1760818392688,0.72,186.98,186.95,5.3490101]
[1760818392897,102.1,186.97,186.95,5.3490101]
[1760818393079,95.40446267,186.97,186.95,5.3490101]
[1760818393987,95.40446267,186.97,186.95,6.0690101]
[1760818394292,95.40446267,186.97,186.96,0.72]
[1760818395891,95.40446267,186.97,186.96,6.06873769]
[1760818397801,95.40446267,186.97,186.96,5.34873769]
[1760818397980,95.40446267,186.97,186.96,0.72]
[1760818398497,95.40446267,186.97,186.95,5.3490238]
[1760818399402,95.40446267,186.97,186.95,6.0690238]
[1760818399596,95.40446267,186.97,186.96,5.34873769]
[1760818400687,95.40446267,186.97,186.95,5.3490238]
[1760818401988,95.40446267,186.97,186.95,6.0690238]
[1760818402389,95.40446267,186.97,186.95,5.3490238]
[1760818403102,96.08446267,186.97,186.95,5.3490238]
[1760818403485,95.40446267,186.97,186.95,5.3490238]
[1760818403809,96.08446267,186.97,186.94,5.34930993]
[1760818404184,95.40446267,186.97,186.94,5.34930993]
[1760818404390,95.40446267,186.97,186.94,6.06930993]
[1760818405186,95.40446267,186.97,186.95,0.72]
[1760818405688,95.40446267,186.97,186.96,5.34873769]
[1760818407010,95.40446267,186.97,186.95,5.3490238]
[1760818411607,95.40446267,186.97,186.95,6.0690238]
[1760818412486,95.40446267,186.97,186.95,5.3490238]
[1760818412692,95.40446267,186.97,186.95,6.0690238]
[1760818413008,95.40446267,186.97,186.96,0.72]
[1760818413206,95.40446267,186.97,186.96,9.53159793]
[1760818414390,95.40446267,186.97,186.96,5.34873769]
[1760818415310,95.40446267,186.97,186.95,5.3490238]
[1760818415615,95.40446267,186.97,186.95,6.0690238]
[1760818418522,95.40446267,186.97,186.95,5.3490238]
[1760818421011,95.40446267,186.97,186.95,6.0690238]
[1760818422326,96.08446267,186.97,186.95,5.3490238]
[1760818422519,95.40446267,186.97,186.95,5.3490238]
[1760818423305,95.40446267,186.97,186.95,6.0690238]
[1760818424807,96.11446267,186.97,186.95,5.3490238]
[1760818425923,95.40446267,186.97,186.94,6.03930993]
[1760818428811,96.11446267,186.97,186.94,6.03930993]
[1760818429227,95.40446267,186.97,186.95,0.69]
[1760818430214,95.40446267,186.97,186.94,5.34930993]
[1760818430414,96.11446267,186.97,186.94,5.34930993]
[1760818430639,0.71,186.96,186.94,5.34930993]
[1760818431128,95.40446267,186.97,186.94,5.34930993]
[1760818431335,96.11446267,186.97,186.94,5.34930993]
[1760818432537,96.11446267,186.97,186.94,6.03930993]
[1760818432732,96.11446267,186.97,186.94,5.34930993]
[1760818432932,96.11446267,186.97,186.94,6.03930993]
[1760818433937,96.11446267,186.97,186.94,5.34930993]
[1760818434625,96.11446267,186.97,186.94,6.03930993]
[1760818434827,96.11446267,186.97,186.94,5.34930993]
[1760818435741,96.11446267,186.97,186.94,6.03930993]
[1760818436243,96.11446267,186.97,186.94,5.34930993]
[1760818438246,96.11446267,186.97,186.94,6.03930993]
[1760818438740,96.11446267,186.97,186.94,19.41258477]
[1760818439842,95.40446267,186.97,186.94,18.72258477]
[1760818440043,95.40446267,186.97,186.95,0.69]
[1760818440240,95.40446267,186.97,186.95,4.15286024]
[1760818441036,95.40446267,186.97,186.96,5.34873769]
[1760818442958,95.40446267,186.97,186.96,9.50159793]
[1760818443343,88.70930669,187.03,186.96,38.95793939]
[1760818443559,88.70930669,187.03,186.99,3.46286024]
[1760818443758,88.70930669,187.03,187.0,0.69]
[1760818444263,88.70930669,187.03,187.0,4.15286024]
[1760818444658,88.70930669,187.03,187.01,5.34730763]
[1760818445262,88.70930669,187.03,187.02,0.69]
[1760818445469,88.70930669,187.03,187.02,4.15286024]
[1760818445660,88.70930669,187.03,187.02,0.69]
[1760818446366,88.70930669,187.03,187.01,8.81016787]
[1760818446564,88.70930669,187.03,187.01,5.34730763]
[1760818446874,88.70930669,187.03,187.01,6.00730763]
[1760818447163,88.70930669,187.03,187.01,5.34730763]
[1760818447365,0.65,187.02,187.01,5.34730763]
[1760818447559,88.70930669,187.03,187.01,5.34730763]
[1760818447865,89.35930669,187.03,187.01,5.34730763]
[1760818449053,88.70930669,187.02,187.0,18.71653009]
[1760818449255,88.70930669,187.02,187.0,19.37653009]
[1760818452960,88.70930669,187.02,187.0,18.71653009]
[1760818453165,89.35930669,187.02,187.0,18.71653009]
[1760818454970,89.35930669,187.02,187.0,5.34759358]
[1760818455374,0.65,187.01,187.0,5.34759358]
[1760818456272,4.11286024,187.01,186.99,5.34782385]
[1760818456457,0.65,187.0,186.99,5.34782385]
[1760818456649,4.11286024,187.0,186.97,21.43183255]
[1760818456850,4.11286024,187.0,186.97,5.34819765]
[1760818457268,4.11286024,187.0,186.97,5.99819765]
[1760818457662,3.46286024,187.0,186.97,5.99819765]
[1760818457857,3.46286024,186.99,186.97,5.34819765]
[1760818458073,0.65,186.99,186.97,5.34819765]
[1760818458382,4.11286024,187.0,186.97,5.34819765]
[1760818458566,0.65,186.99,186.97,5.34819765]
[1760818458955,0.65,186.98,186.96,5.34873769]
[1760818460078,3.46286024,186.99,186.98,5.34816557]
[1760818461787,3.46286024,186.99,186.97,5.34845162]
[1760818462182,4.11286024,187.0,186.97,5.34845162]
[1760818462482,4.11286024,187.0,186.97,5.99845162]
[1760818462680,3.46286024,187.0,186.97,5.99845162]
[1760818463871,88.70930669,186.99,186.97,5.99845162]
[1760818464384,88.70930669,186.99,186.97,5.34845162]
[1760818464590,88.70930669,186.99,186.97,5.99845162]
[1760818465589,88.70930669,186.99,186.97,5.34845162]
[1760818465768,88.70930669,186.99,186.95,29.45785613]